[Event "*** Titled Tuesday Blitz"]
[Site "Chess.com"]
[Date "2018.06.05"]
[Round "5"]
[White "Zufi1811"]
[Black "pedromartinez91"]
[Result "1-0"]
[WhiteElo "2469"]
[BlackElo "2298"]
[TimeControl "180+2"]
[EndTime "14:15:20 PDT"]
[Termination "Zufi1811 won by checkmate"]

1. d4 {[%clk 0:03:01.9]} 1... Nf6 {[%clk 0:03:00.3]} 2. Nf3 {[%clk 0:03:03.8]}
2... g6 {[%clk 0:03:00.2]} 3. e3 {[%clk 0:03:01.2]} 3... Bg7 {[%clk 0:03:01]} 4.
c4 {[%clk 0:03:02.6]} 4... O-O {[%clk 0:03:01.6]} 5. Be2 {[%clk 0:03:04.1]} 5...
c5 {[%clk 0:03:02]} 6. d5 {[%clk 0:03:03.3]} 6... e6 {[%clk 0:03:01]} 7. Nc3
{[%clk 0:03:03.7]} 7... exd5 {[%clk 0:03:01.5]} 8. cxd5 {[%clk 0:03:04.7]} 8...
d6 {[%clk 0:03:01.7]} 9. O-O {[%clk 0:03:02.7]} 9... a6 {[%clk 0:03:02.2]} 10.
a4 {[%clk 0:03:01.8]} 10... Qe7 {[%clk 0:02:57.3]} 11. Nd2 {[%clk 0:02:57]}
11... Nbd7 {[%clk 0:02:54.1]} 12. Nc4 {[%clk 0:02:55.7]} 12... Ne8 {[%clk
0:02:55.1]} 13. Qc2 {[%clk 0:02:44.7]} 13... f5 {[%clk 0:02:55.2]} 14. b3 {[%clk
0:02:36.7]} 14... Ne5 {[%clk 0:02:53.3]} 15. Bb2 {[%clk 0:02:35.3]} 15... g5
{[%clk 0:02:53.5]} 16. Nxe5 {[%clk 0:02:23.1]} 16... Bxe5 {[%clk 0:02:53.1]} 17.
f4 {[%clk 0:02:19.3]} 17... Bg7 {[%clk 0:02:42.5]} 18. Qd2 {[%clk 0:02:07.1]}
18... Bd7 {[%clk 0:02:25.8]} 19. Bd3 {[%clk 0:02:02]} 19... Nf6 {[%clk
0:01:29.8]} 20. Rae1 {[%clk 0:01:20.3]} 20... Ne4 {[%clk 0:01:26.4]} 21. Bxe4
{[%clk 0:01:15]} 21... fxe4 {[%clk 0:01:28.3]} 22. fxg5 {[%clk 0:01:10]} 22...
Bf5 {[%clk 0:01:01.6]} 23. Ne2 {[%clk 0:00:54]} 23... Qxg5 {[%clk 0:00:57.8]}
24. Bxg7 {[%clk 0:00:51.4]} 24... Qxg7 {[%clk 0:00:54.4]} 25. Nf4 {[%clk
0:00:50.6]} 25... Rae8 {[%clk 0:00:55]} 26. Rf2 {[%clk 0:00:47]} 26... Bd7
{[%clk 0:00:35.4]} 27. Qa5 {[%clk 0:00:37.5]} 27... Rc8 {[%clk 0:00:22.1]} 28.
Ref1 {[%clk 0:00:32.8]} 28... Qe5 {[%clk 0:00:18.2]} 29. Qb6 {[%clk 0:00:28.4]}
29... Bg4 {[%clk 0:00:17]} 30. Qxb7 {[%clk 0:00:25.5]} 30... Rb8 {[%clk
0:00:17.9]} 31. Qxa6 {[%clk 0:00:25.1]} 31... Rxb3 {[%clk 0:00:18.9]} 32. h3
{[%clk 0:00:24.6]} 32... Bc8 {[%clk 0:00:18.2]} 33. Qe2 {[%clk 0:00:21]} 33...
Qc3 {[%clk 0:00:14.5]} 34. Qh5 {[%clk 0:00:15.1]} 34... Qxe3 {[%clk 0:00:13.9]}
35. Kh1 {[%clk 0:00:14.1]} 35... Rb1 {[%clk 0:00:13.5]} 36. Qg5+ {[%clk
0:00:15.1]} 36... Kh8 {[%clk 0:00:14.3]} 37. Ng6+ {[%clk 0:00:14.6]} 37... Kg7
{[%clk 0:00:12.8]} 38. Qxe3 {[%clk 0:00:12.7]} 38... Rxf1+ {[%clk 0:00:12.5]}
39. Rxf1 {[%clk 0:00:14.6]} 39... Rxf1+ {[%clk 0:00:13.4]} 40. Kh2 {[%clk
0:00:16.1]} 40... hxg6 {[%clk 0:00:14.8]} 41. Qxe4 {[%clk 0:00:16.7]} 41... Rf7
{[%clk 0:00:15.9]} 42. Qc4 {[%clk 0:00:14.2]} 42... Ra7 {[%clk 0:00:13.2]} 43.
Qb5 {[%clk 0:00:12.8]} 43... Bd7 {[%clk 0:00:12.9]} 44. Qb6 {[%clk 0:00:13.3]}
44... Rxa4 {[%clk 0:00:14.1]} 45. Qxd6 {[%clk 0:00:14.7]} 45... Be8 {[%clk
0:00:15.3]} 46. Qxc5 {[%clk 0:00:15.4]} 46... Kf7 {[%clk 0:00:15.9]} 47. Qc7+
{[%clk 0:00:15.6]} 47... Kf6 {[%clk 0:00:15.1]} 48. d6 {[%clk 0:00:16.5]} 48...
Re4 {[%clk 0:00:13.7]} 49. d7 {[%clk 0:00:16.9]} 49... Bxd7 {[%clk 0:00:15.2]}
50. Qxd7 {[%clk 0:00:18.8]} 50... Re7 {[%clk 0:00:17.1]} 51. Qd6+ {[%clk
0:00:17]} 51... Re6 {[%clk 0:00:18.5]} 52. Qf8+ {[%clk 0:00:17.8]} 52... Kg5
{[%clk 0:00:19.4]} 53. Kg3 {[%clk 0:00:17.9]} 53... Re3+ {[%clk 0:00:20.2]} 54.
Kf2 {[%clk 0:00:19.4]} 54... Re6 {[%clk 0:00:20.8]} 55. Qd8+ {[%clk 0:00:16.8]}
55... Kh5 {[%clk 0:00:19.2]} 56. g4+ {[%clk 0:00:16.9]} 56... Kh6 {[%clk
0:00:18.1]} 57. Qh8+ {[%clk 0:00:18.3]} 57... Kg5 {[%clk 0:00:19.1]} 58. Kf3
{[%clk 0:00:17.3]} 58... Re3+ {[%clk 0:00:19.1]} 59. Kf2 {[%clk 0:00:15.4]}
59... Re2+ {[%clk 0:00:18.9]} 60. Kxe2 {[%clk 0:00:16.2]} 60... Kf4 {[%clk
0:00:19.3]} 61. Qf6+ {[%clk 0:00:17]} 61... Kg3 {[%clk 0:00:20.6]} 62. Qxg6
{[%clk 0:00:18.2]} 62... Kg2 {[%clk 0:00:21.9]} 63. Qf5 {[%clk 0:00:18.3]} 63...
Kg1 {[%clk 0:00:21.8]} 64. g5 {[%clk 0:00:19]} 64... Kh1 {[%clk 0:00:23.5]} 65.
g6 {[%clk 0:00:19.4]} 65... Kh2 {[%clk 0:00:25.2]} 66. g7 {[%clk 0:00:20]} 66...
Kh1 {[%clk 0:00:27.1]} 67. g8=Q {[%clk 0:00:20.6]} 67... Kh2 {[%clk 0:00:29]}
68. Qf2+ {[%clk 0:00:20.5]} 68... Kh1 {[%clk 0:00:30.9]} 69. Qgg1# {[%clk
0:00:19.7]} 1-0

[Event "*** Titled Tuesday Blitz"]
[Site "Chess.com"]
[Date "2018.06.05"]
[Round "5"]
[White "comedy_of_errors"]
[Black "kungmongmanh"]
[Result "1-0"]
[WhiteElo "2588"]
[BlackElo "2419"]
[TimeControl "180+2"]
[EndTime "14:15:27 PDT"]
[Termination "comedy_of_errors won by checkmate"]

1. Nf3 {[%clk 0:03:01.9]} 1... Nf6 {[%clk 0:03:00.3]} 2. g3 {[%clk 0:03:00.1]}
2... g6 {[%clk 0:03:01.4]} 3. b3 {[%clk 0:03:00.7]} 3... Bg7 {[%clk 0:03:02.3]}
4. Bb2 {[%clk 0:03:02.6]} 4... O-O {[%clk 0:03:02.1]} 5. Bg2 {[%clk 0:03:03.6]}
5... d6 {[%clk 0:03:01.1]} 6. d4 {[%clk 0:03:04.4]} 6... Nbd7 {[%clk 0:03:01.3]}
7. O-O {[%clk 0:03:02.7]} 7... c5 {[%clk 0:02:59.2]} 8. c4 {[%clk 0:03:03.6]}
8... a6 {[%clk 0:02:49.2]} 9. Nc3 {[%clk 0:03:03.7]} 9... Rb8 {[%clk 0:02:45.1]}
10. a4 {[%clk 0:02:24.3]} 10... Qa5 {[%clk 0:02:39.6]} 11. Qd2 {[%clk
0:02:17.5]} 11... Qb6 {[%clk 0:02:30.8]} 12. Ra3 {[%clk 0:02:04.3]} 12... Qc7
{[%clk 0:02:14.9]} 13. a5 {[%clk 0:02:01.9]} 13... b6 {[%clk 0:01:48.5]} 14.
axb6 {[%clk 0:02:00.7]} 14... Qxb6 {[%clk 0:01:47.2]} 15. d5 {[%clk 0:01:58.4]}
15... Qb4 {[%clk 0:01:37.5]} 16. Qc2 {[%clk 0:01:52.8]} 16... Ng4 {[%clk
0:01:32.4]} 17. Nd2 {[%clk 0:01:49.8]} 17... Qb7 {[%clk 0:01:23.1]} 18. h3
{[%clk 0:01:49.4]} 18... Ngf6 {[%clk 0:01:22.4]} 19. Rfa1 {[%clk 0:01:48.7]}
19... Qc7 {[%clk 0:01:21.3]} 20. e4 {[%clk 0:01:46.2]} 20... Ne8 {[%clk
0:01:15.3]} 21. Kh2 {[%clk 0:01:45.4]} 21... f5 {[%clk 0:01:11]} 22. f4 {[%clk
0:01:43.9]} 22... fxe4 {[%clk 0:01:06.8]} 23. Ndxe4 {[%clk 0:01:45.8]} 23...
Ndf6 {[%clk 0:01:03.7]} 24. Ng5 {[%clk 0:01:44.8]} 24... Bf5 {[%clk 0:01:04.4]}
25. Qe2 {[%clk 0:01:42]} 25... Qb7 {[%clk 0:00:49.7]} 26. Ne6 {[%clk 0:01:27.5]}
26... Bxe6 {[%clk 0:00:42.7]} 27. Qxe6+ {[%clk 0:01:27.8]} 27... Rf7 {[%clk
0:00:39]} 28. Qe2 {[%clk 0:01:22.5]} 28... Nc7 {[%clk 0:00:38.4]} 29. Nb1 {[%clk
0:01:15.5]} 29... Nfe8 {[%clk 0:00:36.8]} 30. Bxg7 {[%clk 0:01:10.5]} 30... Nxg7
{[%clk 0:00:38.7]} 31. Nd2 {[%clk 0:01:11.9]} 31... Nf5 {[%clk 0:00:38.6]} 32.
Qd3 {[%clk 0:01:09.9]} 32... Nd4 {[%clk 0:00:38.2]} 33. Re1 {[%clk 0:01:07.6]}
33... Qb4 {[%clk 0:00:35.9]} 34. Rea1 {[%clk 0:01:08.3]} 34... Qb7 {[%clk
0:00:36.4]} 35. Bf3 {[%clk 0:01:08]} 35... Qc8 {[%clk 0:00:26.1]} 36. Bg4 {[%clk
0:01:08.4]} 36... Qe8 {[%clk 0:00:25.4]} 37. Nf3 {[%clk 0:01:06.6]} 37... Nxf3+
{[%clk 0:00:26.1]} 38. Qxf3 {[%clk 0:01:08.5]} 38... Rf6 {[%clk 0:00:24]} 39.
Qe3 {[%clk 0:01:07.7]} 39... Rb6 {[%clk 0:00:22.7]} 40. Re1 {[%clk 0:01:07.1]}
40... Kf8 {[%clk 0:00:22.2]} 41. Bd1 {[%clk 0:01:07.9]} 41... Qb8 {[%clk
0:00:22.7]} 42. Bc2 {[%clk 0:01:08.6]} 42... Qd8 {[%clk 0:00:22.7]} 43. Re2
{[%clk 0:01:08.8]} 43... Rf7 {[%clk 0:00:23]} 44. Ra1 {[%clk 0:01:10.1]} 44...
Ne8 {[%clk 0:00:23.2]} 45. Rae1 {[%clk 0:01:08.2]} 45... Nf6 {[%clk 0:00:24.3]}
46. g4 {[%clk 0:01:07.3]} 46... Ne8 {[%clk 0:00:23]} 47. f5 {[%clk 0:01:05.2]}
47... gxf5 {[%clk 0:00:21.4]} 48. Bxf5 {[%clk 0:01:04.1]} 48... Nf6 {[%clk
0:00:21.3]} 49. Rf2 {[%clk 0:00:59.9]} 49... Qb8 {[%clk 0:00:21.8]} 50. Bc2
{[%clk 0:00:59.7]} 50... Rb7 {[%clk 0:00:18.4]} 51. g5 {[%clk 0:00:55.8]} 51...
Ng8 {[%clk 0:00:16.3]} 52. Rxf7+ {[%clk 0:00:55.2]} 52... Kxf7 {[%clk
0:00:17.7]} 53. Bxh7 {[%clk 0:00:55.7]} 53... Kg7 {[%clk 0:00:16.7]} 54. Bxg8
{[%clk 0:00:55.4]} 54... Qxg8 {[%clk 0:00:15.9]} 55. Qc3+ {[%clk 0:00:50.4]}
55... Kf8 {[%clk 0:00:16.8]} 56. h4 {[%clk 0:00:44.3]} 56... Qh7 {[%clk
0:00:17.3]} 57. Kg3 {[%clk 0:00:42.3]} 57... Ke8 {[%clk 0:00:14]} 58. Re3 {[%clk
0:00:36.9]} 58... Qb1 {[%clk 0:00:10.4]} 59. Kg4 {[%clk 0:00:24.2]} 59... Qd1+
{[%clk 0:00:10.2]} 60. Rf3 {[%clk 0:00:25]} 60... Qg1+ {[%clk 0:00:05.6]} 61.
Kh5 {[%clk 0:00:26.2]} 61... Qb1 {[%clk 0:00:05.8]} 62. Qh8+ {[%clk 0:00:18.4]}
62... Kd7 {[%clk 0:00:06.7]} 63. Rf8 {[%clk 0:00:19.5]} 63... Kc7 {[%clk
0:00:07.1]} 64. Rc8+ {[%clk 0:00:20.1]} 64... Kb6 {[%clk 0:00:05.2]} 65. Qd8+
{[%clk 0:00:21.6]} 65... Ka7 {[%clk 0:00:05.7]} 66. Ra8# {[%clk 0:00:22.9]} 1-0

[Event "*** Titled Tuesday Blitz"]
[Site "Chess.com"]
[Date "2018.06.05"]
[Round "5"]
[White "Fianchettoed-Tower"]
[Black "ChainsOfFantasia"]
[Result "1-0"]
[WhiteElo "2332"]
[BlackElo "2400"]
[TimeControl "180+2"]
[EndTime "14:15:28 PDT"]
[Termination "Fianchettoed-Tower won by resignation"]

1. d4 {[%clk 0:03:01.9]} 1... Nf6 {[%clk 0:02:57.6]} 2. Bf4 {[%clk 0:03:03.1]}
2... e6 {[%clk 0:02:59.5]} 3. e3 {[%clk 0:03:04.4]} 3... d5 {[%clk 0:03:00.1]}
4. Nd2 {[%clk 0:03:03.9]} 4... c5 {[%clk 0:03:01.6]} 5. c3 {[%clk 0:03:04.5]}
5... Nc6 {[%clk 0:03:03.2]} 6. Ngf3 {[%clk 0:03:04.7]} 6... Bd6 {[%clk
0:03:04.7]} 7. Bg3 {[%clk 0:03:05.7]} 7... O-O {[%clk 0:03:05.2]} 8. Bd3 {[%clk
0:03:07.1]} 8... c4 {[%clk 0:03:06.2]} 9. Bc2 {[%clk 0:03:08]} 9... b5 {[%clk
0:03:07.5]} 10. a3 {[%clk 0:03:06.5]} 10... a5 {[%clk 0:03:08.5]} 11. Ne5 {[%clk
0:03:07.8]} 11... Bb7 {[%clk 0:03:08.5]} 12. f4 {[%clk 0:03:08.3]} 12... a4
{[%clk 0:03:09.6]} 13. Qf3 {[%clk 0:03:06.1]} 13... Na5 {[%clk 0:03:10.5]} 14.
Bh4 {[%clk 0:03:02.2]} 14... Be7 {[%clk 0:03:10.5]} 15. Qh3 {[%clk 0:02:57]}
15... Ne4 {[%clk 0:03:11.4]} 16. Bxe7 {[%clk 0:02:46.2]} 16... Qxe7 {[%clk
0:03:13.3]} 17. g4 {[%clk 0:02:33.8]} 17... Nb3 {[%clk 0:03:05.7]} 18. Bxb3
{[%clk 0:02:29.6]} 18... axb3 {[%clk 0:03:07.6]} 19. Rd1 {[%clk 0:01:40.2]}
19... f6 {[%clk 0:03:04]} 20. Nef3 {[%clk 0:01:39.8]} 20... b4 {[%clk
0:02:28.1]} 21. axb4 {[%clk 0:01:34.6]} 21... Ra2 {[%clk 0:02:26.2]} 22. Rb1
{[%clk 0:01:35.1]} 22... e5 {[%clk 0:02:11.6]} 23. dxe5 {[%clk 0:01:30.9]} 23...
fxe5 {[%clk 0:02:13.5]} 24. Nxe5 {[%clk 0:01:16.2]} 24... d4 {[%clk 0:02:05.1]}
25. Ndxc4 {[%clk 0:00:34.2]} 25... dxc3 {[%clk 0:01:48.9]} 26. O-O {[%clk
0:00:29.3]} 26... c2 {[%clk 0:01:45.4]} 27. Rbc1 {[%clk 0:00:27.8]} 27... Qxb4
{[%clk 0:01:40.8]} 28. g5 {[%clk 0:00:27.9]} 28... Nd2 {[%clk 0:01:40]} 29. Qe6+
{[%clk 0:00:27.7]} 29... Kh8 {[%clk 0:01:39.5]} 30. Nxd2 {[%clk 0:00:26.6]}
30... Raa8 {[%clk 0:01:12.4]} 31. Ndf3 {[%clk 0:00:17]} 31... Qe4 {[%clk
0:01:02.9]} 32. Qh3 {[%clk 0:00:15]} 32... Qxe3+ {[%clk 0:01:03.2]} 33. Kg2
{[%clk 0:00:14.3]} 33... Kg8 {[%clk 0:00:55.9]} 34. Qe6+ {[%clk 0:00:14.1]}
34... Kh8 {[%clk 0:00:55.5]} 35. Ng6+ {[%clk 0:00:15.4]} 35... hxg6 {[%clk
0:00:52.3]} 36. Qxe3 {[%clk 0:00:17.3]} 36... Rae8 {[%clk 0:00:53.5]} 37. Qf2
{[%clk 0:00:16.6]} 37... Rxf4 {[%clk 0:00:54.3]} 38. Kg3 {[%clk 0:00:16.6]}
38... Ree4 {[%clk 0:00:37.5]} 39. h3 {[%clk 0:00:16.8]} 39... Rf5 {[%clk
0:00:32.3]} 40. Qb6 {[%clk 0:00:14.5]} 40... Bd5 {[%clk 0:00:29.1]} 41. h4
{[%clk 0:00:12.6]} 41... Re2 {[%clk 0:00:23.3]} 42. Qd8+ {[%clk 0:00:11.6]}
42... Kh7 {[%clk 0:00:23.4]} 43. h5 {[%clk 0:00:11.8]} 43... gxh5 {[%clk
0:00:22.7]} 44. Qd6 {[%clk 0:00:12.6]} 44... Re3 {[%clk 0:00:18.7]} 45. g6+
{[%clk 0:00:08.8]} 45... Kh6 {[%clk 0:00:20]} 46. Kh4 {[%clk 0:00:08.6]} 46...
Rexf3 {[%clk 0:00:19.1]} 47. Rxf3 {[%clk 0:00:10]} 47... Bxf3 {[%clk 0:00:20.2]}
48. Rg1 {[%clk 0:00:10.5]} 48... Bg4 {[%clk 0:00:20.6]} 49. Qd2+ {[%clk
0:00:11.7]} 49... Kxg6 {[%clk 0:00:20.3]} 50. Qd3 {[%clk 0:00:13.1]} 50... Kf6
{[%clk 0:00:20.4]} 51. Qxb3 {[%clk 0:00:14.4]} 51... Kg6 {[%clk 0:00:21.5]} 52.
Qxc2 {[%clk 0:00:14.3]} 52... Kf6 {[%clk 0:00:22.3]} 53. b4 {[%clk 0:00:15]}
53... g5+ {[%clk 0:00:23]} 54. Kg3 {[%clk 0:00:15]} 54... Rf3+ {[%clk
0:00:24.9]} 55. Kg2 {[%clk 0:00:15.9]} 55... Re3 {[%clk 0:00:23.3]} 56. Rf1+
{[%clk 0:00:16.7]} 56... Ke5 {[%clk 0:00:24.6]} 57. Qc5+ {[%clk 0:00:18.1]}
57... Ke4 {[%clk 0:00:24.7]} 58. Qe7+ {[%clk 0:00:18.8]} 58... Kd3 {[%clk
0:00:25.6]} 59. Qxg5 {[%clk 0:00:19]} 59... Bh3+ {[%clk 0:00:24.9]} 60. Kg1
{[%clk 0:00:18.5]} 60... Bxf1 {[%clk 0:00:25.1]} 61. Kxf1 {[%clk 0:00:20.4]}
61... Re4 {[%clk 0:00:24.5]} 62. b5 {[%clk 0:00:20.4]} 62... Rb4 {[%clk
0:00:24.4]} 63. Qd5+ {[%clk 0:00:20.5]} 63... Kc3 {[%clk 0:00:24.8]} 64. Qc6+
{[%clk 0:00:21.5]} 64... Kd2 {[%clk 0:00:23.2]} 65. b6 {[%clk 0:00:21.9]} 65...
h4 {[%clk 0:00:24.5]} 66. Qd6+ {[%clk 0:00:21.9]} 66... Kc3 {[%clk 0:00:24.8]}
67. Qxb4+ {[%clk 0:00:23]} 67... Kxb4 {[%clk 0:00:25.5]} 68. b7 {[%clk
0:00:24.9]} 68... Kc4 {[%clk 0:00:26.5]} 69. b8=Q {[%clk 0:00:26.8]} 1-0

[Event "*** Titled Tuesday Blitz"]
[Site "Chess.com"]
[Date "2018.06.05"]
[Round "5"]
[White "NMJeevanK"]
[Black "NormWeinstein"]
[Result "0-1"]
[WhiteElo "2312"]
[BlackElo "2380"]
[TimeControl "180+2"]
[EndTime "14:15:32 PDT"]
[Termination "NormWeinstein won by resignation"]

1. e4 {[%clk 0:03:01.9]} 1... c5 {[%clk 0:03:00.9]} 2. Nf3 {[%clk 0:03:03]} 2...
d6 {[%clk 0:03:01.8]} 3. Bb5+ {[%clk 0:03:03.6]} 3... Bd7 {[%clk 0:03:02.1]} 4.
Bxd7+ {[%clk 0:03:04.1]} 4... Nxd7 {[%clk 0:03:03.5]} 5. d4 {[%clk 0:03:05.1]}
5... cxd4 {[%clk 0:03:02.1]} 6. Qxd4 {[%clk 0:03:07]} 6... Ngf6 {[%clk
0:03:02.1]} 7. c4 {[%clk 0:03:08.3]} 7... e6 {[%clk 0:03:02.6]} 8. Nc3 {[%clk
0:03:09.5]} 8... Be7 {[%clk 0:03:02.8]} 9. O-O {[%clk 0:03:10.2]} 9... O-O
{[%clk 0:02:56.9]} 10. a4 {[%clk 0:03:11.2]} 10... a6 {[%clk 0:02:57.3]} 11. Rb1
{[%clk 0:02:50.5]} 11... Qc7 {[%clk 0:02:53.5]} 12. b3 {[%clk 0:02:48.7]} 12...
Rad8 {[%clk 0:02:50.6]} 13. Rd1 {[%clk 0:02:48.2]} 13... Rfe8 {[%clk 0:02:44.8]}
14. Ba3 {[%clk 0:02:46.4]} 14... Ne5 {[%clk 0:02:34]} 15. Ne1 {[%clk 0:02:19.4]}
15... h6 {[%clk 0:02:28.2]} 16. f4 {[%clk 0:02:20.2]} 16... Ng6 {[%clk
0:02:14.6]} 17. g3 {[%clk 0:02:02.6]} 17... e5 {[%clk 0:02:01.8]} 18. Qf2 {[%clk
0:01:59.6]} 18... exf4 {[%clk 0:01:46.6]} 19. gxf4 {[%clk 0:02:01.5]} 19... d5
{[%clk 0:01:22.1]} 20. Bxe7 {[%clk 0:01:59]} 20... Rxe7 {[%clk 0:01:20.2]} 21.
e5 {[%clk 0:01:42]} 21... Ne4 {[%clk 0:01:02]} 22. Nxe4 {[%clk 0:01:30.5]} 22...
dxe4 {[%clk 0:01:02.6]} 23. Qe3 {[%clk 0:01:23.8]} 23... Red7 {[%clk 0:00:58.1]}
24. Rxd7 {[%clk 0:01:22]} 24... Qxd7 {[%clk 0:00:58.9]} 25. Qxe4 {[%clk
0:01:22]} 25... Qg4+ {[%clk 0:00:58]} 26. Qg2 {[%clk 0:00:44.5]} 26... Qxf4
{[%clk 0:00:57.3]} 27. e6 {[%clk 0:00:45]} 27... Qe3+ {[%clk 0:00:57.6]} 28. Kh1
{[%clk 0:00:45]} 28... Qxe6 {[%clk 0:00:58.9]} 29. Nf3 {[%clk 0:00:46.1]} 29...
Nf4 {[%clk 0:00:54.9]} 30. Qg3 {[%clk 0:00:43.3]} 30... Qf5 {[%clk 0:00:38.2]}
31. Re1 {[%clk 0:00:39.2]} 31... Rd3 {[%clk 0:00:34.4]} 32. Re5 {[%clk
0:00:18.7]} 32... Qf6 {[%clk 0:00:27.3]} 33. Re8+ {[%clk 0:00:17.4]} 33... Kh7
{[%clk 0:00:27.5]} 34. Re4 {[%clk 0:00:16.6]} 34... g5 {[%clk 0:00:26.2]} 35.
Qg4 {[%clk 0:00:06.8]} 35... Rd1+ {[%clk 0:00:22.4]} 36. Ne1 {[%clk 0:00:08.1]}
36... Rd6 {[%clk 0:00:17]} 37. Qf3 {[%clk 0:00:08.6]} 37... Re6 {[%clk
0:00:17.5]} 38. Qe3 {[%clk 0:00:09.2]} 38... Rxe4 {[%clk 0:00:17.5]} 39. Qxe4+
{[%clk 0:00:11.1]} 39... Qg6 {[%clk 0:00:18.5]} 40. Qxb7 {[%clk 0:00:12.2]}
40... Qf5 {[%clk 0:00:15.2]} 41. Nf3 {[%clk 0:00:11]} 41... Qb1+ {[%clk
0:00:12.5]} 42. Ng1 {[%clk 0:00:11.7]} 42... Qd3 {[%clk 0:00:13.2]} 43. Qf3
{[%clk 0:00:11.9]} 43... Qd4 {[%clk 0:00:12.9]} 44. h3 {[%clk 0:00:09.9]} 44...
f5 {[%clk 0:00:13.5]} 45. Kh2 {[%clk 0:00:09.3]} 45... Qd2+ {[%clk 0:00:13.8]}
46. Kh1 {[%clk 0:00:10.2]} 46... Kg6 {[%clk 0:00:12.6]} 47. h4 {[%clk
0:00:09.3]} 47... Qe1 {[%clk 0:00:10.3]} 48. hxg5 {[%clk 0:00:07.3]} 48... Qh4+
{[%clk 0:00:11.3]} 49. Nh3 {[%clk 0:00:06.6]} 49... Nxh3 {[%clk 0:00:12.2]} 50.
Qc6+ {[%clk 0:00:07.7]} 50... Kxg5 {[%clk 0:00:13.3]} 51. Kg2 {[%clk 0:00:07.7]}
51... Nf4+ {[%clk 0:00:13.8]} 52. Kf1 {[%clk 0:00:07.4]} 52... Qh3+ {[%clk
0:00:13.3]} 53. Ke1 {[%clk 0:00:08.5]} 53... Qd3 {[%clk 0:00:12]} 54. Kf2 {[%clk
0:00:07.3]} 54... Qe2+ {[%clk 0:00:12.3]} 55. Kg1 {[%clk 0:00:08.7]} 55... Qe1+
{[%clk 0:00:13.1]} 56. Kh2 {[%clk 0:00:09.3]} 56... Qf2+ {[%clk 0:00:13.8]} 57.
Kh1 {[%clk 0:00:10.5]} 57... Kg4 {[%clk 0:00:14.4]} 58. Qb7 {[%clk 0:00:06.8]}
58... Ng6 {[%clk 0:00:12.1]} 59. Qc6 {[%clk 0:00:04.1]} 59... Qf1+ {[%clk
0:00:09.4]} 60. Kh2 {[%clk 0:00:04.8]} 60... Qf2+ {[%clk 0:00:10.5]} 61. Qg2+
{[%clk 0:00:06]} 61... Qxg2+ {[%clk 0:00:10]} 62. Kxg2 {[%clk 0:00:07.9]} 62...
Kf4 {[%clk 0:00:11.1]} 63. c5 {[%clk 0:00:09.1]} 63... Ke5 {[%clk 0:00:11.6]}
64. b4 {[%clk 0:00:10.5]} 64... Kd5 {[%clk 0:00:12.7]} 65. Kf3 {[%clk
0:00:11.6]} 65... a5 {[%clk 0:00:13.6]} 66. bxa5 {[%clk 0:00:12]} 66... Kxc5
{[%clk 0:00:14.4]} 67. Kg3 {[%clk 0:00:13.4]} 67... h5 {[%clk 0:00:14.3]} 68.
Kf3 {[%clk 0:00:14.3]} 68... h4 {[%clk 0:00:15.2]} 69. Kg2 {[%clk 0:00:15.7]}
69... f4 {[%clk 0:00:15.7]} 70. Kf3 {[%clk 0:00:17.1]} 70... Kc6 {[%clk
0:00:16.7]} 71. Kg4 {[%clk 0:00:18]} 71... Kb7 {[%clk 0:00:17.3]} 72. Kf5 {[%clk
0:00:18.6]} 72... f3 {[%clk 0:00:17.7]} 73. Kxg6 {[%clk 0:00:19.7]} 0-1